[Event "2021 m. Jauniu lyga. III etapas. B"]
[Site "Siauliai"]
[Date "2021.07.04"]
[Round "5.1"]
[White "Simkunaite, Gabija"]
[Black "Ser, Daniel"]
[Result "0-1"]
[WhiteElo "1899"]
[BlackElo "1710"]
[PlyCount "80"]
[EventDate "2021.??.??"]
[TimeControl "8+4"]
[WhiteClock "0:00:43"]
[BlackClock "0:00:19"]

1. e4 {[%emt 0:00:02]} e6 {[%emt 0:00:02]} 2. d4 {[%emt 0:00:00]} d5 {[%emt 0:
00:05]} 3. Nc3 {[%emt 0:00:05]} Bb4 {[%emt 0:00:01]} 4. e5 {[%emt 0:00:02]} Ne7
{[%emt 0:00:01]} 5. a3 {[%emt 0:00:01]} Bxc3+ {[%emt 0:00:00]} 6. bxc3 {[%emt
0:00:01]} c5 {[%emt 0:00:00]} 7. Qg4 {[%emt 0:00:14]} Qc7 {[%emt 0:00:00]} 8.
Bd2 {[%emt 0:00:29]} Nf5 {[%emt 0:00:15]} 9. Bd3 {[%emt 0:00:16]} h5 {[%emt 0:
00:12]} 10. Qf4 {[%emt 0:00:04]} g6 {[%emt 0:00:03]} 11. Ne2 {[%emt 0:00:11]}
Nc6 {[%emt 0:00:34]} 12. Bxf5 {[%emt 0:00:29]} exf5 {[%emt 0:00:05]} 13. e6 {
[%emt 0:00:33]} Qxf4 {[%emt 0:01:00]} 14. exf7+ {[%emt 0:00:02]} Kxf7 {[%emt 0:
00:00]} 15. Nxf4 {[%emt 0:00:07]} Re8+ {[%emt 0:01:32]} 16. Kf1 {[%emt 0:00:02]
} Be6 {[%emt 0:00:01]} 17. Rb1 {[%emt 0:00:33]} b6 {[%emt 0:01:08]} 18. dxc5 {
[%emt 0:00:10]} bxc5 {[%emt 0:00:01]} 19. f3 {[%emt 0:00:11]} Rab8 {[%emt 0:01:
19]} 20. Kf2 {[%emt 0:00:03]} d4 {[%emt 0:00:23]} 21. Rhe1 {[%emt 0:01:38]} Ba2
{[%emt 0:00:26]} 22. Rxb8 {[%emt 0:00:40]} Rxb8 {[%emt 0:00:10]} 23. Nd3 {
[%emt 0:00:32]} c4 {[%emt 0:02:06]} 24. Nb4 {[%emt 0:00:02]} Nxb4 {[%emt 0:00:
04]} 25. axb4 {[%emt 0:00:01]} a5 {[%emt 0:00:16]} 26. Ra1 {[%emt 0:00:02]}
axb4 {[%emt 0:00:01]} 27. Rxa2 {[%emt 0:00:16]} bxc3 {[%emt 0:00:09]} 28. Bc1 {
[%emt 0:00:26]} Rb1 {[%emt 0:00:02]} 29. Ba3 {[%emt 0:00:01]} d3 {[%emt 0:00:
04]} 30. cxd3 {[%emt 0:00:52]} cxd3 31. Bb4 {[%emt 0:00:51]} Rxb4 {[%emt 0:00:
02]} 32. Ke3 {[%emt 0:00:01]} d2 {[%emt 0:00:05]} 33. Ra1 {[%emt 0:00:06]} Rb7
{[%emt 0:00:05]} 34. Kd3 {[%emt 0:00:06]} Rd7+ {[%emt 0:00:02]} 35. Kc2 {[%emt
0:00:02]} Rc7 {[%emt 0:00:17]} 36. h3 {[%emt 0:00:08]} Kf6 {[%emt 0:00:00]} 37.
f4 {[%emt 0:00:06]} Ke6 {[%emt 0:00:01]} 38. Ra6+ {[%emt 0:00:03]} Kd5 {[%emt
0:00:03]} 39. Rxg6 {[%emt 0:00:07]} Ke4 {[%emt 0:00:02]} 40. g4 {[%emt 0:00:05]
} Rd7 {[%emt 0:00:01]} 0-1

[Event "2021 m. Jauniu lyga. III etapas. B"]
[Site "Siauliai"]
[Date "2021.07.04"]
[Round "5.2"]
[White "Maciuitis, Ignas"]
[Black "Ravlusevic, Evelina"]
[Result "0-1"]
[WhiteElo "1855"]
[BlackElo "1748"]
[PlyCount "70"]
[EventDate "2021.??.??"]
[TimeControl "8+4"]
[WhiteClock "0:02:03"]
[BlackClock "0:03:26"]

1. e4 {[%emt 0:12:18]} c5 {[%emt 0:00:02]} 2. d4 {[%emt 0:00:02]} cxd4 {[%emt
0:00:02]} 3. c3 {[%emt 0:00:00]} Nf6 {[%emt 0:00:02]} 4. e5 {[%emt 0:00:01]}
Nd5 {[%emt 0:00:00]} 5. cxd4 {[%emt 0:00:02]} d6 {[%emt 0:00:01]} 6. exd6 {
[%emt 0:00:02]} Qxd6 {[%emt 0:00:02]} 7. Nc3 {[%emt 0:00:01]} Nxc3 {[%emt 0:00:
16]} 8. bxc3 {[%emt 0:00:01]} e5 {[%emt 0:00:00]} 9. Bb5+ {[%emt 0:00:31]} Bd7
{[%emt 0:00:06]} 10. Bxd7+ {[%emt 0:00:07]} Nxd7 {[%emt 0:00:01]} 11. Qe2 {
[%emt 0:00:10]} Be7 {[%emt 0:00:06]} 12. Nf3 {[%emt 0:00:01]} exd4 {[%emt 0:00:
13]} 13. cxd4 {[%emt 0:00:09]} O-O {[%emt 0:00:03]} 14. O-O {[%emt 0:00:03]}
Bf6 {[%emt 0:00:03]} 15. Qd3 {[%emt 0:00:22]} Rfd8 {[%emt 0:00:14]} 16. Ba3 {
[%emt 0:00:08]} Qd5 {[%emt 0:00:03]} 17. Rfd1 {[%emt 0:01:05]} Rac8 {[%emt 0:
00:12]} 18. h3 {[%emt 0:00:14]} g6 {[%emt 0:00:02]} 19. Qe3 {[%emt 0:00:45]}
Bg7 {[%emt 0:00:31]} 20. Rab1 {[%emt 0:00:40]} b5 {[%emt 0:00:02]} 21. Qd2 {
[%emt 0:00:21]} Nb6 {[%emt 0:00:21]} 22. Bc5 {[%emt 0:00:32]} Nc4 {[%emt 0:00:
33]} 23. Qb4 {[%emt 0:00:24]} a6 {[%emt 0:00:24]} 24. a4 {[%emt 0:00:15]} Rb8 {
[%emt 0:00:17]} 25. axb5 {[%emt 0:00:07]} Rxb5 {[%emt 0:00:37]} 26. Qa4 {[%emt
0:00:02]} Ra5 {[%emt 0:00:33]} 27. Qb4 {[%emt 0:00:02]} Rb5 {[%emt 0:00:05]}
28. Qa4 {[%emt 0:00:04]} Ra5 {[%emt 0:00:30]} 29. Qb4 {[%emt 0:00:03]} Rb5 {
[%emt 0:00:02]} 30. Qc3 {[%emt 0:00:01]} Rxc5 {[%emt 0:00:22]} 31. Rb4 {[%emt
0:00:31]} a5 {[%emt 0:00:37]} 32. Ra4 {[%emt 0:00:16]} Nb6 {[%emt 0:00:06]} 33.
dxc5 {[%emt 0:01:20]} Qxd1+ {[%emt 0:00:16]} 34. Qe1 {[%emt 0:00:06]} Qxe1+ {
[%emt 0:00:03]} 35. Nxe1 {[%emt 0:00:01]} Nxa4 {[%emt 0:00:02]} 0-1

[Event "2021 m. Jauniu lyga. III etapas. B"]
[Site "Siauliai"]
[Date "2021.07.04"]
[Round "5.3"]
[White "Venckevicius, Justas"]
[Black "Persinas, Vilius"]
[Result "1/2-1/2"]
[WhiteElo "1692"]
[BlackElo "1668"]
[PlyCount "73"]
[EventDate "2021.??.??"]
[TimeControl "8+4"]
[WhiteClock "0:00:15"]
[BlackClock "0:03:37"]

1. e4 {[%emt 0:17:21]} c5 {[%emt 0:00:04]} 2. Nc3 {[%emt 0:00:01]} g6 {[%emt 0:
00:01]} 3. f4 {[%emt 0:00:00]} Bg7 {[%emt 0:00:00]} 4. Nf3 {[%emt 0:00:00]} a6
{[%emt 0:00:03]} 5. Bc4 {[%emt 0:00:02]} e6 {[%emt 0:00:01]} 6. d3 {[%emt 0:00:
01]} Ne7 {[%emt 0:00:01]} 7. O-O {[%emt 0:00:08]} O-O {[%emt 0:00:04]} 8. Qe1 {
[%emt 0:00:33]} f5 {[%emt 0:00:06]} 9. e5 {[%emt 0:00:47]} b5 {[%emt 0:00:05]}
10. Bb3 {[%emt 0:00:00]} d5 {[%emt 0:00:33]} 11. exd6 {[%emt 0:00:05]} Qxd6 {
[%emt 0:00:00]} 12. Ng5 {[%emt 0:00:37]} Nd5 {[%emt 0:00:19]} 13. Qh4 {[%emt 0:
01:29]} h6 {[%emt 0:00:06]} 14. Nf3 {[%emt 0:00:01]} Nc6 {[%emt 0:01:07]} 15.
Bd2 {[%emt 0:00:58]} Nd4 {[%emt 0:00:12]} 16. Nxd4 {[%emt 0:00:37]} Bxd4+ {
[%emt 0:00:00]} 17. Kh1 {[%emt 0:00:01]} Kg7 {[%emt 0:00:00]} 18. Rae1 {[%emt
0:00:31]} Bf6 {[%emt 0:00:20]} 19. Qg3 {[%emt 0:00:17]} Bd7 {[%emt 0:00:08]}
20. Re2 {[%emt 0:01:07]} b4 {[%emt 0:00:26]} 21. Nxd5 {[%emt 0:00:17]} exd5 {
[%emt 0:00:01]} 22. Rfe1 {[%emt 0:00:09]} Rae8 {[%emt 0:00:13]} 23. Qf3 {[%emt
0:00:14]} d4 {[%emt 0:00:22]} 24. Qb7 {[%emt 0:00:30]} Rb8 {[%emt 0:01:06]} 25.
Qd5 {[%emt 0:00:38]} Qxd5 {[%emt 0:00:13]} 26. Bxd5 {[%emt 0:00:01]} Rbe8 {
[%emt 0:00:00]} 27. Rxe8 {[%emt 0:00:04]} Rxe8 {[%emt 0:00:00]} 28. Rxe8 {
[%emt 0:00:02]} Bxe8 {[%emt 0:00:01]} 29. g3 {[%emt 0:00:09]} Bf7 {[%emt 0:00:
09]} 30. Bxf7 {[%emt 0:00:22]} Kxf7 {[%emt 0:00:00]} 31. Kg2 {[%emt 0:00:01]}
Ke6 {[%emt 0:00:00]} 32. Kf3 {[%emt 0:00:01]} h5 {[%emt 0:00:06]} 33. h3 {
[%emt 0:00:03]} Kd5 {[%emt 0:00:21]} 34. g4 {[%emt 0:00:05]} hxg4+ {[%emt 0:00:
02]} 35. hxg4 {[%emt 0:00:01]} a5 {[%emt 0:00:17]} 36. b3 {[%emt 0:00:13]} Ke6
{[%emt 0:00:17]} 37. g5 {[%emt 0:00:07]} 1/2-1/2

[Event "2021 m. Jauniu lyga. III etapas. B"]
[Site "Siauliai"]
[Date "2021.07.04"]
[Round "5.4"]
[White "Spevak, Dovydas"]
[Black "Dijokas, Jokubas"]
[Result "1-0"]
[WhiteElo "1432"]
[BlackElo "1335"]
[PlyCount "85"]
[EventDate "2021.??.??"]
[TimeControl "8+4"]
[WhiteClock "0:00:16"]
[BlackClock "0:00:10"]

1. d4 {[%emt 0:00:00]} d5 {[%emt 0:00:03]} 2. e3 {[%emt 0:00:00]} Nf6 {[%emt 0:
00:04]} 3. Bd3 {[%emt 0:00:00]} c5 {[%emt 0:00:02]} 4. c3 {[%emt 0:00:00]} Nc6
{[%emt 0:00:03]} 5. Nd2 {[%emt 0:00:00]} Qb6 {[%emt 0:00:08]} 6. f4 {[%emt 0:
00:06]} Bg4 {[%emt 0:00:15]} 7. Ngf3 {[%emt 0:00:04]} e6 {[%emt 0:00:03]} 8.
O-O {[%emt 0:00:08]} Be7 {[%emt 0:00:01]} 9. h3 {[%emt 0:00:00]} Bf5 {[%emt 0:
00:03]} 10. Bxf5 {[%emt 0:00:20]} exf5 {[%emt 0:00:02]} 11. Ne5 {[%emt 0:00:02]
} Rd8 {[%emt 0:00:39]} 12. Kh2 {[%emt 0:00:37]} O-O {[%emt 0:00:08]} 13. g4 {
[%emt 0:00:42]} fxg4 {[%emt 0:00:18]} 14. hxg4 {[%emt 0:00:08]} Qc7 {[%emt 0:
00:45]} 15. g5 {[%emt 0:00:52]} Ne8 {[%emt 0:00:20]} 16. Qh5 {[%emt 0:02:54]}
cxd4 {[%emt 0:01:50]} 17. exd4 {[%emt 0:00:25]} Qd6 {[%emt 0:00:25]} 18. Ndf3 {
[%emt 0:01:20]} g6 {[%emt 0:00:29]} 19. Qh6 {[%emt 0:00:28]} Ng7 {[%emt 0:00:
05]} 20. Qh4 {[%emt 0:00:23]} Nf5 {[%emt 0:00:08]} 21. Qg4 {[%emt 0:00:05]} Qe6
{[%emt 0:00:58]} 22. Nxc6 {[%emt 0:00:13]} bxc6 {[%emt 0:00:40]} 23. Bd2 {
[%emt 0:00:04]} Ng7 {[%emt 0:01:14]} 24. Qxe6 {[%emt 0:00:04]} fxe6 {[%emt 0:
00:27]} 25. Rae1 {[%emt 0:00:05]} Rd6 {[%emt 0:00:13]} 26. Ne5 {[%emt 0:00:06]}
Nh5 {[%emt 0:00:11]} 27. c4 {[%emt 0:00:05]} dxc4 {[%emt 0:00:11]} 28. Bb4 {
[%emt 0:00:01]} Rxd4 {[%emt 0:00:14]} 29. Bxe7 {[%emt 0:00:03]} Rd2+ {[%emt 0:
00:02]} 30. Kg1 {[%emt 0:00:08]} Rxf4 {[%emt 0:00:04]} 31. Rxf4 {[%emt 0:00:04]
} Nxf4 {[%emt 0:00:01]} 32. Nf3 {[%emt 0:00:09]} Nh3+ {[%emt 0:00:06]} 33. Kh1
{[%emt 0:00:03]} Rf2 {[%emt 0:00:06]} 34. Nh2 {[%emt 0:00:09]} Nxg5 {[%emt 0:
00:08]} 35. Bxg5 {[%emt 0:00:02]} Rxb2 {[%emt 0:00:04]} 36. Rxe6 {[%emt 0:00:
03]} Rb1+ {[%emt 0:00:02]} 37. Kg2 {[%emt 0:00:01]} Rb2+ {[%emt 0:00:02]} 38.
Kg3 {[%emt 0:00:02]} c5 {[%emt 0:00:11]} 39. Rc6 {[%emt 0:00:06]} Rb5 {[%emt 0:
00:05]} 40. Ng4 {[%emt 0:00:05]} c3 {[%emt 0:00:03]} 41. Nh6+ {[%emt 0:00:03]}
Kg7 {[%emt 0:00:11]} 42. Rc7+ {[%emt 0:00:02]} Kf8 {[%emt 0:00:02]} 43. Rc8+ {
[%emt 0:00:10]} 1-0

[Event "2021 m. Jauniu lyga. III etapas. B"]
[Site "Siauliai"]
[Date "2021.07.04"]
[Round "6.1"]
[White "Ser, Daniel"]
[Black "Dijokas, Jokubas"]
[Result "1-0"]
[WhiteElo "1710"]
[BlackElo "1335"]
[PlyCount "123"]
[EventDate "2021.??.??"]
[TimeControl "8+4"]
[WhiteClock "0:02:36"]
[BlackClock "0:00:42"]

1. d4 {[%emt 0:00:00]} d5 {[%emt 0:00:03]} 2. Bf4 {[%emt 0:00:00]} Nf6 {[%emt
0:00:03]} 3. e3 {[%emt 0:00:01]} c5 {[%emt 0:00:02]} 4. c3 {[%emt 0:00:01]} Nc6
{[%emt 0:00:03]} 5. Nd2 {[%emt 0:00:00]} Bf5 {[%emt 0:00:18]} 6. Qb3 {[%emt 0:
00:01]} Qc8 {[%emt 0:00:08]} 7. Ngf3 {[%emt 0:00:10]} e6 {[%emt 0:00:04]} 8.
Nh4 {[%emt 0:00:13]} Be4 {[%emt 0:00:02]} 9. Nxe4 {[%emt 0:00:00]} dxe4 {[%emt
0:00:04]} 10. g3 {[%emt 0:00:07]} Be7 {[%emt 0:00:07]} 11. Ng2 {[%emt 0:00:17]}
O-O {[%emt 0:00:14]} 12. Be2 {[%emt 0:00:07]} Nd5 {[%emt 0:00:14]} 13. h4 {
[%emt 0:00:32]} Qd7 {[%emt 0:00:27]} 14. Rd1 {[%emt 0:00:17]} cxd4 {[%emt 0:00:
15]} 15. exd4 {[%emt 0:00:05]} a5 {[%emt 0:00:38]} 16. a4 {[%emt 0:00:04]} f5 {
[%emt 0:00:26]} 17. Ne3 {[%emt 0:00:14]} Nxf4 {[%emt 0:01:18]} 18. gxf4 {[%emt
0:00:02]} Kh8 {[%emt 0:00:59]} 19. Bc4 {[%emt 0:00:38]} Nd8 {[%emt 0:00:30]}
20. h5 {[%emt 0:00:53]} Qd6 {[%emt 0:00:33]} 21. Ng2 {[%emt 0:00:06]} Rf6 {
[%emt 0:00:58]} 22. Ke2 {[%emt 0:00:02]} Qc7 {[%emt 0:00:18]} 23. Qb5 {[%emt 0:
01:46]} Nc6 {[%emt 0:00:25]} 24. Rdg1 {[%emt 0:00:22]} Bd6 {[%emt 0:00:10]} 25.
Rh4 {[%emt 0:00:20]} Ne7 {[%emt 0:00:20]} 26. Bb3 {[%emt 0:00:17]} Rc8 {[%emt
0:00:15]} 27. Rgh1 {[%emt 0:00:03]} h6 {[%emt 0:00:13]} 28. Ke3 {[%emt 0:00:32]
} Kh7 {[%emt 0:00:06]} 29. Rg1 {[%emt 0:00:05]} Nc6 {[%emt 0:00:14]} 30. Bxe6 {
[%emt 0:00:22]} Na7 {[%emt 0:00:26]} 31. Bxf5+ {[%emt 0:00:12]} Kh8 {[%emt 0:
00:04]} 32. Qd5 {[%emt 0:00:03]} Re8 {[%emt 0:00:06]} 33. Rg4 {[%emt 0:00:04]}
Nc6 {[%emt 0:00:05]} 34. Qb5 {[%emt 0:00:21]} Ref8 {[%emt 0:00:06]} 35. Nh4 {
[%emt 0:00:03]} R6f7 {[%emt 0:00:03]} 36. Ng6+ {[%emt 0:00:01]} Kg8 {[%emt 0:
00:02]} 37. Be6 {[%emt 0:00:09]} Qd8 {[%emt 0:00:08]} 38. Nxf8 {[%emt 0:00:05]}
Qxf8 {[%emt 0:00:01]} 39. Rxg7+ {[%emt 0:00:02]} Qxg7 {[%emt 0:00:03]} 40.
Rxg7+ {[%emt 0:00:02]} Kxg7 {[%emt 0:00:02]} 41. Bxf7 {[%emt 0:00:02]} Kxf7 {
[%emt 0:00:02]} 42. Qf5+ {[%emt 0:00:02]} Ke7 {[%emt 0:00:05]} 43. Qh7+ {[%emt
0:00:01]} Ke8 {[%emt 0:00:04]} 44. Qxb7 {[%emt 0:00:03]} Nd8 {[%emt 0:00:02]}
45. Qb5+ {[%emt 0:00:02]} Kf8 {[%emt 0:00:03]} 46. Qxa5 {[%emt 0:00:02]} Be7 {
[%emt 0:00:02]} 47. Qf5+ {[%emt 0:00:03]} Ke8 {[%emt 0:00:02]} 48. Qg6+ {[%emt
0:00:01]} Nf7 {[%emt 0:00:04]} 49. Kxe4 {[%emt 0:00:05]} Kf8 {[%emt 0:00:02]}
50. Ke3 {[%emt 0:00:05]} Bd8 {[%emt 0:00:05]} 51. b4 {[%emt 0:00:05]} Bc7 {
[%emt 0:00:03]} 52. a5 {[%emt 0:00:04]} Ke7 {[%emt 0:00:03]} 53. a6 {[%emt 0:
00:02]} Bb8 {[%emt 0:00:03]} 54. b5 {[%emt 0:00:02]} Ba7 {[%emt 0:00:04]} 55.
c4 {[%emt 0:00:06]} Nd6 {[%emt 0:00:01]} 56. Qxd6+ {[%emt 0:00:07]} Kxd6 {
[%emt 0:00:02]} 57. c5+ {[%emt 0:00:01]} Kc7 {[%emt 0:00:02]} 58. b6+ {[%emt 0:
00:02]} Bxb6 {[%emt 0:00:01]} 59. cxb6+ {[%emt 0:00:01]} Kxb6 {[%emt 0:00:01]}
60. f5 {[%emt 0:00:01]} Kxa6 {[%emt 0:00:03]} 61. f6 {[%emt 0:00:01]} Kb7 {
[%emt 0:00:01]} 62. f7 {[%emt 0:00:01]} 1-0

[Event "2021 m. Jauniu lyga. III etapas. B"]
[Site "Siauliai"]
[Date "2021.07.04"]
[Round "6.2"]
[White "Persinas, Vilius"]
[Black "Spevak, Dovydas"]
[Result "1-0"]
[WhiteElo "1668"]
[BlackElo "1432"]
[PlyCount "79"]
[EventDate "2021.??.??"]
[TimeControl "8+4"]
[WhiteClock "0:05:17"]
[BlackClock "0:00:11"]

1. c4 {[%emt 0:11:17]} c6 {[%emt 0:00:07]} 2. g3 {[%emt 0:00:01]} d5 {[%emt 0:
00:00]} 3. Bg2 {[%emt 0:00:02]} e6 {[%emt 0:00:03]} 4. b3 {[%emt 0:00:02]} f5 {
[%emt 0:00:02]} 5. Bb2 {[%emt 0:00:00]} Nf6 {[%emt 0:00:00]} 6. e3 {[%emt 0:00:
07]} Bd6 {[%emt 0:00:02]} 7. Ne2 {[%emt 0:00:02]} Nbd7 {[%emt 0:00:02]} 8. O-O
{[%emt 0:00:02]} O-O {[%emt 0:00:00]} 9. Nbc3 {[%emt 0:00:00]} b6 {[%emt 0:00:
08]} 10. d3 {[%emt 0:00:10]} Bb7 {[%emt 0:00:07]} 11. Rc1 {[%emt 0:00:01]} Rc8
{[%emt 0:00:44]} 12. cxd5 {[%emt 0:01:16]} exd5 {[%emt 0:00:19]} 13. Nd4 {
[%emt 0:00:02]} Qe8 {[%emt 0:02:15]} 14. Nxf5 {[%emt 0:00:08]} Bb8 {[%emt 0:00:
07]} 15. Ba3 {[%emt 0:00:17]} Rf7 {[%emt 0:01:04]} 16. Bd6 {[%emt 0:00:29]} Qe6
{[%emt 0:00:35]} 17. Bxb8 {[%emt 0:00:03]} Qxf5 {[%emt 0:00:21]} 18. e4 {[%emt
0:00:05]} dxe4 {[%emt 0:00:53]} 19. dxe4 {[%emt 0:00:01]} Qe6 {[%emt 0:01:05]}
20. Bf4 {[%emt 0:00:12]} Rff8 {[%emt 0:00:46]} 21. Qd6 {[%emt 0:00:18]} Qxd6 {
[%emt 0:00:07]} 22. Bxd6 {[%emt 0:00:00]} Rfe8 {[%emt 0:00:09]} 23. f4 {[%emt
0:00:12]} c5 {[%emt 0:00:09]} 24. e5 {[%emt 0:00:02]} Bxg2 {[%emt 0:00:02]} 25.
Kxg2 {[%emt 0:00:01]} Ng4 {[%emt 0:00:06]} 26. Rfe1 {[%emt 0:00:20]} Rc6 {
[%emt 0:00:15]} 27. Rcd1 {[%emt 0:00:02]} Ndf6 {[%emt 0:00:12]} 28. h3 {[%emt
0:00:13]} Nh6 {[%emt 0:00:04]} 29. Nb5 {[%emt 0:00:29]} Nf7 {[%emt 0:00:07]}
30. Nxa7 {[%emt 0:00:07]} Nxd6 {[%emt 0:00:07]} 31. Nxc6 {[%emt 0:00:03]} Nde4
{[%emt 0:00:06]} 32. exf6 {[%emt 0:00:03]} gxf6 {[%emt 0:00:02]} 33. Rd8 {
[%emt 0:00:02]} Rxd8 {[%emt 0:00:03]} 34. Nxd8 {[%emt 0:00:01]} Nc3 {[%emt 0:
00:05]} 35. a4 {[%emt 0:00:04]} Nd5 {[%emt 0:00:01]} 36. Nc6 {[%emt 0:00:09]}
Kf7 {[%emt 0:00:02]} 37. Kf3 {[%emt 0:00:08]} Nc3 {[%emt 0:00:06]} 38. Re7+ {
[%emt 0:00:02]} Kg6 {[%emt 0:00:01]} 39. Rb7 {[%emt 0:00:07]} Nd5 {[%emt 0:00:
05]} 40. Ne7+ {[%emt 0:00:00]} 1-0

[Event "2021 m. Jauniu lyga. III etapas. B"]
[Site "Siauliai"]
[Date "2021.07.04"]
[Round "6.3"]
[White "Ravlusevic, Evelina"]
[Black "Venckevicius, Justas"]
[Result "1/2-1/2"]
[WhiteElo "1748"]
[BlackElo "1692"]
[PlyCount "122"]
[EventDate "2021.??.??"]
[TimeControl "8+4"]
[WhiteClock "0:00:10"]
[BlackClock "0:00:29"]

1. d4 {[%emt 0:00:00]} d5 {[%emt 0:00:01]} 2. c4 {[%emt 0:00:00]} e6 {[%emt 0:
00:00]} 3. Nf3 {[%emt 0:00:02]} Nf6 {[%emt 0:00:01]} 4. g3 {[%emt 0:00:00]} c6
{[%emt 0:00:14]} 5. Bg2 {[%emt 0:00:02]} dxc4 {[%emt 0:00:08]} 6. a4 {[%emt 0:
00:03]} Bb4+ {[%emt 0:00:22]} 7. Bd2 {[%emt 0:00:01]} Qa5 {[%emt 0:00:05]} 8.
O-O {[%emt 0:00:09]} O-O {[%emt 0:00:14]} 9. Ne5 {[%emt 0:00:03]} Bxd2 {[%emt
0:00:38]} 10. Nxc4 {[%emt 0:00:23]} Qc7 {[%emt 0:00:36]} 11. Nbxd2 {[%emt 0:00:
04]} c5 {[%emt 0:00:09]} 12. dxc5 {[%emt 0:00:18]} Qxc5 {[%emt 0:00:03]} 13.
Rc1 {[%emt 0:00:01]} Qe7 {[%emt 0:00:05]} 14. Ne5 {[%emt 0:00:22]} Nd5 {[%emt
0:02:46]} 15. Qb3 {[%emt 0:00:13]} Qd6 {[%emt 0:00:27]} 16. Ndc4 {[%emt 0:00:
07]} Qa6 {[%emt 0:00:11]} 17. Qa3 {[%emt 0:00:34]} Bd7 {[%emt 0:01:17]} 18.
Nxd7 {[%emt 0:00:18]} Nxd7 {[%emt 0:00:01]} 19. b4 {[%emt 0:00:14]} b5 {[%emt
0:00:12]} 20. axb5 {[%emt 0:01:43]} Qxb5 {[%emt 0:00:03]} 21. Qa5 {[%emt 0:00:
41]} Rfb8 {[%emt 0:00:52]} 22. Ne3 {[%emt 0:01:22]} N7f6 {[%emt 0:00:33]} 23.
Nxd5 {[%emt 0:00:28]} Nxd5 {[%emt 0:00:03]} 24. e4 {[%emt 0:01:14]} Nxb4 {
[%emt 0:00:14]} 25. Qc7 {[%emt 0:00:31]} Na6 {[%emt 0:00:07]} 26. Qc3 {[%emt 0:
00:17]} Rd8 {[%emt 0:00:27]} 27. Rb1 {[%emt 0:00:10]} Qc5 {[%emt 0:00:03]} 28.
Qa1 {[%emt 0:00:06]} Nb4 {[%emt 0:00:09]} 29. Rfc1 {[%emt 0:00:06]} Qe7 {[%emt
0:00:01]} 30. Qa4 {[%emt 0:00:06]} a5 {[%emt 0:00:01]} 31. e5 {[%emt 0:00:03]}
Ra7 {[%emt 0:00:02]} 32. Rc4 {[%emt 0:00:03]} Qd7 {[%emt 0:00:06]} 33. Qa1 {
[%emt 0:00:07]} Nd5 {[%emt 0:00:11]} 34. Rc5 {[%emt 0:00:04]} Rc8 {[%emt 0:00:
02]} 35. Rxa5 {[%emt 0:00:03]} Rxa5 {[%emt 0:00:01]} 36. Qxa5 {[%emt 0:00:01]}
Qc7 {[%emt 0:00:03]} 37. Qe1 {[%emt 0:00:02]} Qc3 {[%emt 0:00:03]} 38. Bxd5 {
[%emt 0:00:03]} Qxe1+ {[%emt 0:00:02]} 39. Rxe1 {[%emt 0:00:02]} exd5 {[%emt 0:
00:00]} 40. Rd1 {[%emt 0:00:02]} Rd8 {[%emt 0:00:01]} 41. f4 {[%emt 0:00:01]}
Kf8 {[%emt 0:00:01]} 42. Kf2 Ke7 43. Ke3 {[%emt 0:00:01]} Ke6 44. Rc1 {[%emt 0:
00:04]} Ra8 {[%emt 0:00:02]} 45. Rc6+ {[%emt 0:00:08]} Ke7 {[%emt 0:00:04]} 46.
Kd4 {[%emt 0:00:02]} Ra2 {[%emt 0:00:03]} 47. Kxd5 {[%emt 0:00:05]} Rxh2 {
[%emt 0:00:02]} 48. Rc7+ {[%emt 0:00:02]} Ke8 {[%emt 0:00:02]} 49. Ke4 {[%emt
0:00:10]} Re2+ {[%emt 0:00:03]} 50. Kf5 {[%emt 0:00:03]} Re1 {[%emt 0:00:19]}
51. Ra7 {[%emt 0:00:07]} Re2 {[%emt 0:00:03]} 52. Kg4 {[%emt 0:00:08]} Re1 {
[%emt 0:00:06]} 53. Kf3 {[%emt 0:00:06]} Rb1 {[%emt 0:00:04]} 54. g4 {[%emt 0:
00:02]} Rb3+ {[%emt 0:00:04]} 55. Ke4 {[%emt 0:00:02]} Rb4+ {[%emt 0:00:01]}
56. Kf5 {[%emt 0:00:02]} g6+ {[%emt 0:00:09]} 57. Kg5 {[%emt 0:00:07]} h6+ {
[%emt 0:00:01]} 58. Kxh6 {[%emt 0:00:05]} Rxf4 {[%emt 0:00:01]} 59. g5 {[%emt
0:00:04]} Rf5 {[%emt 0:00:04]} 60. Kg7 {[%emt 0:00:02]} Rxg5 {[%emt 0:00:11]}
61. Rxf7 {[%emt 0:00:03]} Rxe5 {[%emt 0:00:02]} 1/2-1/2